bitfinex/quotes_BTCUSD_20250927
["timestamp","ask_amount","ask_price","bid_price","bid_amount"]
[1758961549104,2.05502322,109620.0,109610.0,0.03852826]
[1758961549265,2.34218322,109620.0,109610.0,0.03852826]
[1758961550138,2.38008784,109620.0,109610.0,0.03852826]
[1758961551702,2.38008784,109620.0,109610.0,0.03529826]
[1758961554055,2.38009027,109620.0,109610.0,0.03529826]
[1758961554551,2.38005027,109620.0,109610.0,0.03529826]
[1758961554790,2.38005027,109620.0,109610.0,0.03842826]
[1758961555334,2.09293027,109620.0,109610.0,0.03842826]
[1758961555541,2.38005027,109620.0,109610.0,0.03842826]
[1758961555748,2.38005481,109620.0,109610.0,0.03842826]
[1758961558996,2.38001481,109620.0,109610.0,0.03842826]
[1758961559203,2.37843481,109620.0,109610.0,0.03842826]
[1758961560623,2.38001481,109620.0,109610.0,0.03842826]
[1758961562253,2.37839481,109620.0,109610.0,0.03842826]
[1758961565826,2.37997481,109620.0,109610.0,0.03842826]
[1758961566212,2.37997481,109620.0,109610.0,0.03529826]
[1758961566668,2.37997481,109620.0,109610.0,0.03319826]
[1758961568791,2.1731582,109620.0,109610.0,0.03319826]
[1758961568984,2.35560665,109620.0,109610.0,0.03319826]
[1758961569203,2.06856665,109620.0,109610.0,0.03522826]
[1758961569464,2.35556665,109620.0,109610.0,0.03522826]
[1758961571341,2.06856665,109620.0,109610.0,0.03522826]
[1758961571548,1.60820931,109620.0,109610.0,0.03522826]
[1758961571929,2.35552665,109620.0,109610.0,0.03823826]
[1758961573137,2.35552665,109620.0,109610.0,0.03522826]
[1758961576565,2.20260499,109620.0,109610.0,0.03522826]
[1758961577889,1.91564499,109620.0,109610.0,0.03522826]
[1758961578095,2.20256499,109620.0,109610.0,0.03522826]
[1758961578230,2.19400402,109620.0,109610.0,0.03522826]
[1758961580777,1.90708402,109620.0,109610.0,0.03522826]
[1758961581006,2.19400402,109620.0,109610.0,0.03825826]
[1758961581586,1.90708402,109620.0,109610.0,0.03825826]
[1758961581793,2.19396402,109620.0,109610.0,0.03825826]
[1758961581998,1.90708402,109620.0,109610.0,0.03825826]
[1758961582210,2.19396402,109620.0,109610.0,0.03825826]
[1758961582633,2.19396402,109620.0,109610.0,0.03522826]
[1758961583410,1.88810834,109620.0,109610.0,0.03522826]
[1758961583530,2.19396402,109620.0,109610.0,0.03522826]
[1758961584351,2.19396402,109620.0,109610.0,0.03825826]
[1758961584892,2.19396402,109620.0,109610.0,0.03522826]
[1758961587437,1.90708402,109620.0,109610.0,0.03522826]
[1758961587658,2.19396402,109620.0,109610.0,0.03522826]
[1758961587808,2.19238402,109620.0,109610.0,0.03825826]
[1758961588005,1.88652834,109620.0,109610.0,0.03825826]
[1758961588212,2.19238402,109620.0,109610.0,0.03825826]
[1758961588412,2.19396402,109620.0,109610.0,0.03825826]
[1758961594248,2.19396402,109620.0,109610.0,0.03522826]
[1758961596608,1.88810834,109620.0,109610.0,0.03522826]
[1758961596816,2.19396402,109620.0,109610.0,0.03522826]
[1758961600474,2.19396402,109620.0,109610.0,0.03825826]
[1758961600672,2.19238402,109620.0,109610.0,0.03825826]
[1758961603315,1.86830302,109620.0,109610.0,0.03825826]
[1758961603784,0.05863787,109620.0,109610.0,0.57497745]
[1758961603987,0.04432533,109620.0,109610.0,0.25087526]
[1758961604317,0.04432533,109620.0,109610.0,0.2783246]
[1758961604793,0.0443206,109620.0,109610.0,0.2783246]
[1758961605207,0.0443206,109620.0,109610.0,0.2903246]
[1758961605858,0.0443206,109620.0,109610.0,0.2923246]
[1758961606057,0.0443206,109620.0,109610.0,0.5790846]
[1758961606261,0.22676905,109620.0,109610.0,0.5790446]
[1758961607427,0.22676905,109620.0,109610.0,0.2923246]
[1758961607628,0.22676905,109620.0,109610.0,0.5790446]
[1758961608170,0.24107992,109620.0,109610.0,0.5790446]
[1758961609288,0.24107992,109620.0,109610.0,0.5790046]
[1758961609558,0.24107992,109620.0,109610.0,0.2923246]
[1758961609859,0.24107992,109620.0,109610.0,0.5790046]
[1758961610848,0.24107992,109620.0,109610.0,0.2923246]
[1758961611022,0.24107992,109620.0,109610.0,0.5790046]
[1758961615178,0.24107992,109620.0,109610.0,0.5789646]
[1758961619346,0.24106913,109620.0,109610.0,0.5789646]
[1758961620322,0.24106913,109620.0,109610.0,0.2923246]
[1758961620547,0.24106913,109620.0,109610.0,0.5789246]
[1758961621366,0.06509534,109620.0,109610.0,0.5789246]
[1758961622159,0.10177684,109620.0,109610.0,0.5789246]
[1758961623182,0.10177684,109620.0,109610.0,0.2923246]
[1758961623391,0.09537165,109620.0,109610.0,0.5789246]
[1758961623566,0.10177763,109620.0,109610.0,0.5789246]
[1758961625880,0.10177763,109620.0,109610.0,0.2923246]
[1758961626085,0.10177763,109620.0,109610.0,0.5789246]
[1758961626282,0.10177763,109620.0,109610.0,0.2923246]
[1758961626485,0.05739835,109620.0,109610.0,0.5789246]
[1758961629440,0.05740256,109620.0,109610.0,0.5789246]
[1758961629867,0.23985101,109620.0,109610.0,0.5789246]
[1758961630884,0.23985101,109620.0,109610.0,0.2923246]
[1758961631060,0.23985101,109620.0,109610.0,0.5788846]
[1758961638715,0.46917108,109620.0,109610.0,0.5788846]
[1758961640962,0.47075108,109620.0,109610.0,0.5758546]
[1758961641382,0.28830263,109620.0,109610.0,0.5758546]
[1758961641820,0.28830263,109620.0,109610.0,0.5787946]
[1758961642190,0.28830263,109620.0,109610.0,0.55134526]
[1758961642318,0.28672263,109620.0,109610.0,0.55134526]
[1758961643135,0.10564537,109620.0,109610.0,0.55134526]
[1758961648109,0.14193325,109620.0,109610.0,0.55134526]
[1758961650564,0.3243817,109620.0,109610.0,0.55134526]
[1758961657009,0.26560795,109620.0,109610.0,0.55134526]
[1758961657184,0.03628788,109620.0,109610.0,0.55134526]
[1758961657383,0.22932007,109620.0,109610.0,0.55134526]
[1758961658016,0.41176852,109620.0,109610.0,0.55134526]
[1758961658221,0.44964204,109620.0,109610.0,0.55134526]
[1758961658937,0.44964204,109620.0,109610.0,0.26478526]
[1758961659124,0.44964204,109620.0,109610.0,0.55118526]
[1758961659747,0.03787352,109620.0,109610.0,0.55118526]
[1758961659967,0.03787352,109620.0,109610.0,0.78050533]
[1758961660175,0.81267825,109630.0,109620.0,0.22289861]
[1758961660381,1.42241286,109630.0,109620.0,0.22781861]
[1758961660584,1.42241286,109630.0,109620.0,0.25141861]
[1758961661318,1.42245932,109630.0,109620.0,0.25141861]
[1758961661569,1.42245932,109630.0,109620.0,0.25441861]
[1758961662537,1.08245932,109630.0,109620.0,0.25441861]
[1758961662859,1.03600532,109630.0,109620.0,0.25441861]
[1758961663589,0.80668525,109630.0,109620.0,0.25441861]
[1758961663829,1.03600532,109630.0,109620.0,0.25441861]
[1758961664063,1.26789539,109630.0,109620.0,0.03689826]
[1758961664299,1.55826392,109630.0,109620.0,0.0266]
[1758961664796,1.89826392,109630.0,109620.0,0.0266]
[1758961665055,1.89826392,109630.0,109620.0,0.0256]
[1758961665372,1.89926392,109630.0,109620.0,0.0236]
[1758961665779,1.90026392,109630.0,109620.0,0.0236]
[1758961666581,1.89926392,109630.0,109620.0,0.0236]
[1758961666980,1.90126392,109630.0,109620.0,0.0236]
[1758961667291,1.90026392,109630.0,109620.0,0.0236]
[1758961667508,1.9175765,109630.0,109620.0,0.0236]
[1758961667709,1.9215765,109630.0,109620.0,0.0236]
[1758961668387,1.9165765,109630.0,109620.0,0.0236]
[1758961668602,1.9215765,109630.0,109620.0,0.0236]
[1758961670483,2.3030165,109630.0,109620.0,0.0236]
[1758961671065,1.9215765,109630.0,109620.0,0.0236]
[1758961671259,2.3030165,109630.0,109620.0,0.0236]
[1758961682945,2.30299059,109630.0,109620.0,0.0236]
[1758961683524,2.10040244,109630.0,109620.0,0.0236]
[1758961683739,2.28283455,109630.0,109620.0,0.0236]
[1758961684662,2.05351448,109630.0,109620.0,0.0236]
[1758961687937,1.86999908,109630.0,109620.0,0.0236]
[1758961688525,1.52499528,109630.0,109620.0,0.0236]
[1758961688731,1.90639528,109630.0,109620.0,0.0236]
[1758961691948,1.03874412,109630.0,109620.0,0.02877]
[1758961692120,1.02443154,109630.0,109620.0,0.03906826]
[1758961692329,1.30219702,109630.0,109620.0,0.03906826]
[1758961692525,1.53151709,109630.0,109620.0,0.03906826]
[1758961692768,1.54582819,109630.0,109620.0,0.03906826]
[1758961692978,1.54182819,109630.0,109620.0,0.03906826]
[1758961693182,1.25550819,109630.0,109620.0,0.03906826]
[1758961693393,1.54182819,109630.0,109620.0,0.03906826]
[1758961694013,1.53682819,109630.0,109620.0,0.03906826]
[1758961694231,1.53682819,109630.0,109620.0,0.04406826]
[1758961694646,1.52251709,109630.0,109620.0,0.04406826]
[1758961697464,1.5368282,109630.0,109620.0,0.04406826]
[1758961698631,1.53673684,109630.0,109620.0,0.04406826]
[1758961700607,1.61319013,109630.0,109620.0,0.04406826]
[1758961700959,1.40978529,109630.0,109620.0,0.04406826]
[1758961701408,1.12346529,109630.0,109620.0,0.04406826]
[1758961701599,1.40974529,109630.0,109620.0,0.04406826]
[1758961701839,1.12346529,109630.0,109620.0,0.04406826]
[1758961702016,1.40974529,109630.0,109620.0,0.04406826]
[1758961703800,1.37330909,109630.0,109620.0,0.04406826]
[1758961705695,1.37331937,109630.0,109620.0,0.04406826]
[1758961713147,0.23138098,109630.0,109620.0,0.22651671]
[1758961713388,0.57138098,109630.0,109620.0,0.22651671]
[1758961714830,0.79744209,109630.0,109620.0,0.22651671]
[1758961715057,0.67550309,109630.0,109620.0,0.22651671]
[1758961716134,0.66119198,109630.0,109620.0,0.22651671]
[1758961717100,0.63060598,109630.0,109620.0,0.25666861]
[1758961717274,0.532327,109630.0,109620.0,0.25666861]
[1758961717453,0.34640582,109630.0,109620.0,0.25666861]
[1758961717657,0.46473282,109630.0,109620.0,0.25666861]
[1758961717864,0.34640582,109630.0,109620.0,0.25666861]
[1758961720791,0.34640582,109630.0,109620.0,0.54282861]
[1758961721530,0.34640582,109630.0,109620.0,0.25666861]
[1758961721706,0.34640582,109630.0,109620.0,0.63790861]
[1758961721946,0.34,109630.0,109620.0,0.63790861]
[1758961722332,0.34,109630.0,109620.0,0.25666861]
[1758961722528,0.34,109630.0,109620.0,0.63290861]
[1758961722701,0.34,109630.0,109620.0,0.65990861]
[1758961724493,0.34640455,109630.0,109620.0,0.56482861]
[1758961724699,0.34640455,109630.0,109620.0,0.65990861]
[1758961725104,0.34640455,109630.0,109620.0,0.56482861]
[1758961726222,0.34640455,109630.0,109620.0,0.27866861]
[1758961726378,0.34640455,109630.0,109620.0,0.56482861]
[1758961726602,0.34640455,109630.0,109620.0,0.27866861]
[1758961727105,0.34640455,109630.0,109620.0,0.56478861]
[1758961727701,0.34640455,109630.0,109620.0,0.27866861]
[1758961728051,0.34640455,109630.0,109620.0,0.56478861]
[1758961729379,0.00640455,109630.0,109620.0,0.56478861]
[1758961729502,0.00640455,109630.0,109620.0,0.27866861]
[1758961730129,0.00640455,109630.0,109620.0,0.65986861]
[1758961734073,0.34640455,109630.0,109620.0,0.65986861]
[1758961736453,0.52554966,109640.0,109630.0,0.22288197]
[1758961736657,1.26128066,109640.0,109630.0,0.22491197]
[1758961736866,1.26286066,109640.0,109630.0,0.24986197]
[1758961737472,1.26286066,109640.0,109630.0,0.25281197]
[1758961737904,1.26286066,109640.0,109630.0,0.26581197]
[1758961738112,1.26286066,109640.0,109630.0,0.26881197]
[1758961738517,1.60286066,109640.0,109630.0,0.26881197]
[1758961738672,1.57594066,109640.0,109630.0,0.26881197]
[1758961740718,1.35423466,109640.0,109630.0,0.26881197]
[1758961741137,1.14587903,109640.0,109630.0,0.26881197]
[1758961741896,1.14429903,109640.0,109630.0,0.26881197]
[1758961742231,0.35430967,109640.0,109630.0,0.26881197]
[1758961742432,0.01430967,109640.0,109630.0,0.26881197]
[1758961742646,0.35430967,109640.0,109630.0,0.26881197]
[1758961746767,0.53672484,109640.0,109630.0,0.55485197]
[1758961747732,0.53672484,109640.0,109630.0,0.26881197]
[1758961747962,0.53672484,109640.0,109630.0,0.55485197]
[1758961748681,0.5431443,109640.0,109630.0,0.55485197]
[1758961753804,1.91604202,109640.0,109630.0,0.05124826]
[1758961754011,1.94308734,109640.0,109630.0,0.05124826]
[1758961754219,1.91604202,109640.0,109630.0,0.05124826]
[1758961754836,1.90173235,109640.0,109630.0,0.05124826]
[1758961755042,1.90173235,109640.0,109630.0,0.04824826]
[1758961755249,1.29018563,109640.0,109630.0,0.03524826]
[1758961755461,1.90173235,109640.0,109630.0,0.03624826]
[1758961756065,1.90173235,109640.0,109630.0,0.04324826]
[1758961758147,1.9160417,109640.0,109630.0,0.04324826]
[1758961760549,1.76314402,109640.0,109630.0,0.04324826]
[1758961761980,1.76215402,109640.0,109630.0,0.04324826]
[1758961763014,1.78960235,109640.0,109630.0,0.04324826]
[1758961765757,1.78960235,109640.0,109630.0,0.04534826]
[1758961772398,1.78959685,109640.0,109630.0,0.04534826]
[1758961774249,1.78959685,109640.0,109630.0,0.04324826]
[1758961776290,1.78959685,109640.0,109630.0,0.04850826]
[1758961777944,1.78801685,109640.0,109630.0,0.22778007]
[1758961778143,1.35305652,109640.0,109630.0,0.04850826]
[1758961778570,1.35305652,109640.0,109630.0,0.23094007]
[1758961778770,1.35305652,109640.0,109630.0,0.51694007]
[1758961781899,1.01305652,109640.0,109630.0,0.51694007]
[1758961783875,1.35305652,109640.0,109630.0,0.51694007]
[1758961784421,1.35305652,109640.0,109630.0,0.33446826]
[1758961784630,1.35463652,109640.0,109630.0,0.33446826]
[1758961785448,1.35463652,109640.0,109630.0,0.51690007]
[1758961785651,0.36072331,109640.0,109630.0,0.77637649]
[1758961785883,0.34641396,109640.0,109630.0,0.77637649]
[1758961786094,0.34641396,109640.0,109630.0,0.49041649]
[1758961786095,0.00641396,109640.0,109630.0,0.49041649]
[1758961786307,0.00641396,109640.0,109630.0,0.77765649]
[1758961786539,0.34641396,109640.0,109630.0,0.64341197]
[1758961786749,0.34641396,109640.0,109630.0,0.26109197]
[1758961786925,0.34641396,109640.0,109630.0,0.64341197]
[1758961788306,0.34,109640.0,109630.0,0.64341197]
[1758961789413,0.56932452,109640.0,109630.0,0.64341197]
[1758961791216,0.34,109640.0,109630.0,0.64341197]
[1758961792488,0.56932452,109640.0,109630.0,0.64341197]
[1758961793526,0.56932452,109640.0,109630.0,0.64313197]
[1758961795801,0.22932452,109640.0,109630.0,0.64313197]
[1758961797314,0.22932452,109640.0,109630.0,0.26109197]
[1758961797510,0.22932452,109640.0,109630.0,0.64301197]
[1758961799510,0.56932452,109640.0,109630.0,0.26109197]
[1758961799671,0.56932452,109640.0,109630.0,0.64297197]
[1758961800303,0.56932452,109640.0,109630.0,0.26109197]
[1758961800710,0.98264421,109640.0,109630.0,0.63759197]
[1758961800913,0.98905538,109640.0,109630.0,0.63759197]
[1758961801524,0.80664021,109640.0,109630.0,0.64269197]
[1758961805148,0.98905538,109640.0,109630.0,0.64269197]
[1758961806699,0.98905538,109640.0,109630.0,0.45516016]
[1758961807283,1.74783638,109640.0,109630.0,0.45516016]
[1758961807892,1.74882638,109640.0,109630.0,0.45520016]
[1758961808095,1.40882638,109640.0,109630.0,0.45520016]
[1758961810071,1.40882638,109640.0,109630.0,0.36016016]
[1758961810276,1.74882638,109640.0,109630.0,0.36016016]
[1758961810823,1.74882638,109640.0,109630.0,0.04324826]
[1758961811070,1.74882638,109640.0,109630.0,0.32996826]
[1758961811470,1.77627351,109640.0,109630.0,0.32996826]
[1758961818516,1.77528351,109640.0,109630.0,0.32996826]
[1758961819889,1.77627351,109640.0,109630.0,0.32996826]
[1758961821924,1.77528351,109640.0,109630.0,0.32996826]
[1758961822356,1.31663447,109640.0,109630.0,0.32996826]
[1758961822559,1.77528351,109640.0,109630.0,0.04324826]
[1758961822769,1.62236846,109640.0,109630.0,0.04324826]
[1758961823031,1.62236846,109640.0,109630.0,0.33004826]
[1758961825188,1.62236846,109640.0,109630.0,0.32996826]
[1758961828054,1.62236846,109640.0,109630.0,0.32988826]
[1758961829093,1.63667757,109640.0,109630.0,0.32988826]
[1758961829524,1.42407546,109640.0,109630.0,0.32988826]
[1758961829740,1.6064914,109640.0,109630.0,0.32988826]
[1758961830252,1.91222539,109640.0,109630.0,0.04324826]
[1758961830454,1.91222539,109640.0,109630.0,0.32988826]
[1758961833627,1.91222539,109640.0,109630.0,0.32984826]
[1758961834329,1.6064914,109640.0,109630.0,0.04324826]
[1758961834498,1.6064914,109640.0,109630.0,0.32980826]
[1758961836534,1.6064914,109640.0,109630.0,0.04324826]
[1758961836756,1.6064914,109640.0,109630.0,0.32976826]
[1758961838446,1.91222539,109640.0,109630.0,0.04324826]
[1758961838660,1.91222539,109640.0,109630.0,0.32972826]
[1758961839463,1.91222539,109640.0,109630.0,0.32272826]
[1758961839833,1.91222539,109640.0,109630.0,0.32264826]
[1758961840259,1.91222539,109640.0,109630.0,0.32260826]
[1758961840473,1.91222539,109640.0,109630.0,0.32462826]
[1758961840680,1.6064914,109640.0,109630.0,0.32462826]
[1758961841485,1.61291317,109640.0,109630.0,0.32260826]
[1758961842863,1.61291317,109640.0,109630.0,0.32462826]
[1758961843065,1.30717918,109640.0,109630.0,0.32462826]
[1758961843276,1.61291317,109640.0,109630.0,0.32462826]
[1758961843478,2.00735863,109640.0,109630.0,0.03624826]
[1758961844456,2.01591954,109640.0,109630.0,0.03524826]
[1758961844666,2.01791954,109640.0,109630.0,0.03524826]
[1758961844868,1.93420807,109640.0,109630.0,0.03524826]
[1758961845910,2.22460807,109640.0,109630.0,0.03524826]
[1758961853980,2.02534423,109640.0,109630.0,0.03524826]
[1758961854121,1.88460807,109640.0,109630.0,0.03524826]
[1758961854581,1.97331954,109640.0,109630.0,0.03524826]
[1758961854794,1.95901043,109640.0,109630.0,0.03524826]
[1758961856121,2.21029896,109640.0,109630.0,0.03524826]
[1758961857535,2.21028596,109640.0,109630.0,0.03524826]
[1758961857743,2.20173805,109640.0,109630.0,0.03524826]
[1758961857936,2.21604834,109640.0,109630.0,0.03524826]
[1758961863516,2.04525768,109640.0,109630.0,0.03524826]
[1758961863734,2.07270996,109640.0,109630.0,0.03524826]
[1758961863939,2.16142143,109640.0,109630.0,0.03524826]
[1758961866190,2.07270996,109640.0,109630.0,0.03524826]
[1758961866545,2.08126558,109640.0,109630.0,0.03524826]
[1758961876106,1.86533129,109640.0,109630.0,0.03524826]
[1758961876322,2.04774611,109640.0,109630.0,0.03524826]
[1758961882287,2.04775997,109640.0,109630.0,0.03524826]
[1758961882694,2.13647144,109640.0,109630.0,0.03524826]
[1758961884779,2.21311187,109640.0,109630.0,0.03524826]
[1758961891642,2.21311187,109640.0,109630.0,0.03730826]
[1758961896005,2.21311187,109640.0,109630.0,0.03524826]
[1758961897925,2.02231511,109640.0,109630.0,0.03524826]
[1758961898062,1.93360364,109640.0,109630.0,0.03524826]
[1758961902677,1.24549523,109640.0,109630.0,0.03730826]
[1758961902887,1.93360364,109640.0,109630.0,0.03730826]
[1758961903938,1.93360333,109640.0,109630.0,0.03730826]
[1758961904799,1.93360333,109640.0,109630.0,0.03524826]
[1758961905001,2.0223148,109640.0,109630.0,0.03524826]
[1758961916823,2.02231502,109640.0,109630.0,0.03524826]
[1758961920818,2.02231551,109640.0,109630.0,0.03524826]
[1758961924039,1.93360404,109640.0,109630.0,0.04040826]
[1758961946724,1.85716395,109640.0,109630.0,0.04040826]
[1758961948479,1.95117631,109640.0,109630.0,0.04040826]
[1758961950016,1.33950799,109640.0,109630.0,0.04040826]
[1758961950258,1.64534215,109640.0,109630.0,0.04040826]
[1758961950471,1.63103186,109640.0,109630.0,0.04040826]
[1758961950614,1.08184912,109640.0,109630.0,0.04040826]
[1758961951166,0.23660177,109610.0,109600.0,0.6714709]
[1758961951366,0.23660177,109610.0,109600.0,0.67367736]
[1758961951570,0.26069177,109610.0,109600.0,0.70112514]
[1758961951800,0.26069177,109610.0,109600.0,0.39529098]
[1758961952015,0.26069177,109610.0,109600.0,0.41241497]
[1758961952395,0.03989508,109610.0,109600.0,0.41241497]
[1758961952609,0.03989508,109610.0,109600.0,0.41841497]
[1758961953245,0.06703744,109610.0,109600.0,0.45044497]
[1758961961665,0.06703744,109610.0,109600.0,0.75627913]
[1758961962300,0.06703744,109610.0,109600.0,0.80627913]
[1758961966003,0.06703744,109610.0,109600.0,0.78915514]
[1758961968821,0.03989508,109610.0,109600.0,0.78915514]
[1758961972419,0.03989508,109610.0,109600.0,0.48332098]
[1758961972594,0.34775924,109610.0,109600.0,0.66845098]
[1758961972810,0.35080924,109610.0,109600.0,0.63629908]
[1758961973034,0.69080924,109610.0,109600.0,0.63629908]
[1758961973477,1.43299734,109610.0,109600.0,0.06249424]
[1758961973692,1.43299734,109610.0,109600.0,0.32216646]
[1758961973917,1.46686339,109610.0,109600.0,0.34631836]
[1758961974137,1.46686339,109610.0,109600.0,0.35031836]
[1758961974339,1.46686339,109610.0,109600.0,0.06319836]
[1758961974581,1.46686339,109610.0,109600.0,0.52876011]
[1758961975097,1.46686339,109610.0,109600.0,0.50276011]
[1758961975322,1.46686339,109610.0,109600.0,0.23868011]
[1758961975531,1.46686339,109610.0,109600.0,0.50280011]
[1758961976007,1.46686339,109610.0,109600.0,0.51980011]
[1758961982288,1.46044951,109610.0,109600.0,0.51980011]
[1758961983293,1.15461535,109610.0,109600.0,0.51980011]
[1758961983993,0.81304635,109610.0,109600.0,0.51980011]
[1758961986098,1.12529103,109610.0,109600.0,0.02004646]
[1758961986511,1.5008025,109610.0,109600.0,0.02004646]
[1758961986975,1.41209103,109610.0,109600.0,0.02004646]
[1758961987159,1.41209103,109610.0,109600.0,0.01704646]
[1758961987518,1.41209103,109610.0,109600.0,0.01804646]
[1758961987907,1.41209103,109610.0,109600.0,4.646e-05]
[1758961988259,1.41209103,109610.0,109600.0,0.00504646]
[1758961989025,1.42353651,109610.0,109600.0,0.00504646]
[1758961992392,1.43785011,109610.0,109600.0,0.00504646]
[1758961994568,1.42640463,109610.0,109600.0,0.00504646]
[1758961998632,1.12057047,109610.0,109600.0,0.00504646]
[1758961998855,1.42640463,109610.0,109600.0,0.00504646]
[1758962008638,1.57944087,109610.0,109600.0,0.00504646]
[1758962013682,1.57944636,109610.0,109600.0,0.00504646]
[1758962015527,1.57621718,109610.0,109600.0,0.00504646]
[1758962015865,1.57316718,109610.0,109600.0,0.00720646]
[1758962017846,1.57317486,109610.0,109600.0,0.00720646]
[1758962019219,1.57626486,109610.0,109600.0,0.00504646]
[1758962026317,1.57626375,109610.0,109600.0,0.00504646]
[1758962026800,1.37272368,109610.0,109600.0,0.00504646]
[1758962027245,1.37272368,109610.0,109600.0,0.02901646]
[1758962029243,0.62396328,109610.0,109600.0,0.21676821]
[1758962029453,0.62396328,109610.0,109600.0,0.03428646]
[1758962029866,0.37835711,109610.0,109600.0,0.24692011]
[1758962030068,0.16399718,109610.0,109600.0,0.24692011]
[1758962030269,0.34646228,109610.0,109600.0,0.24692011]
[1758962030481,0.68646228,109610.0,109600.0,0.24692011]
[1758962030890,0.48373318,109610.0,109600.0,0.24692011]
[1758962031112,0.66619828,109610.0,109600.0,0.24692011]
[1758962034483,0.89563348,109610.0,109600.0,0.24692011]
[1758962034698,0.71316838,109610.0,109600.0,0.24692011]
[1758962035769,0.51100498,109610.0,109600.0,0.24692011]
[1758962035990,0.3524322,109610.0,109600.0,0.24692011]
[1758962037659,0.6924322,109610.0,109600.0,0.24692011]
[1758962040447,0.462997,109610.0,109600.0,0.24692011]
[1758962040672,0.6924322,109610.0,109600.0,0.24692011]
[1758962041263,0.8748973,109610.0,109600.0,0.24692011]
[1758962041914,1.1063125,109610.0,109600.0,0.03117646]
[1758962042120,1.1088425,109610.0,109600.0,0.02901646]
[1758962042654,1.13629947,109610.0,109600.0,0.02901646]
[1758962047604,1.14271128,109610.0,109600.0,0.02901646]
[1758962057673,1.46085795,109610.0,109600.0,0.02901646]
[1758962058045,1.37214648,109610.0,109600.0,0.02901646]
[1758962060537,1.42943031,109610.0,109600.0,0.02901646]
[1758962066814,0.67932991,109610.0,109600.0,0.03429646]
[1758962067014,1.19544511,109610.0,109600.0,0.03429646]
[1758962067239,0.90876511,109610.0,109600.0,0.03429646]
[1758962067415,1.19544511,109610.0,109600.0,0.03429646]
[1758962070327,0.96600991,109610.0,109600.0,0.03429646]
[1758962070485,1.19544511,109610.0,109600.0,0.03429646]
[1758962070677,1.27183973,109610.0,109600.0,0.03429646]
[1758962076686,0.96600991,109610.0,109600.0,0.03429646]
[1758962076905,0.67932991,109610.0,109600.0,0.21677821]
[1758962077141,0.15686481,109610.0,109600.0,0.24693011]
[1758962077338,0.37386781,109610.0,109600.0,0.24693011]
[1758962078679,0.03386781,109610.0,109600.0,0.24493011]
[1758962078889,0.00641084,109610.0,109600.0,0.24493011]
[1758962079093,0.34641084,109610.0,109600.0,0.25993011]
[1758962080838,0.17000119,109610.0,109600.0,0.25993011]
[1758962081074,0.47583101,109610.0,109600.0,0.25993011]
[1758962100045,0.65829611,109610.0,109600.0,0.25993011]
[1758962100183,0.66668704,109610.0,109600.0,0.25993011]
[1758962101015,0.46142948,109610.0,109600.0,0.25993011]
[1758962101572,0.27896438,109610.0,109600.0,0.25993011]
[1758962102028,0.27896438,109610.0,109600.0,0.25675011]
[1758962102253,0.46142948,109610.0,109600.0,0.25465011]
[1758962102476,0.46142948,109610.0,109600.0,0.07216836]
[1758962102872,0.46142948,109610.0,109600.0,0.25465011]
[1758962103097,0.46395948,109610.0,109600.0,0.54117011]
[1758962103512,0.46142948,109610.0,109600.0,0.54117011]
[1758962104686,0.46142948,109610.0,109600.0,0.25465011]
[1758962104907,0.46142948,109610.0,109600.0,0.54117011]
[1758962105890,0.46143406,109610.0,109600.0,0.54117011]
[1758962106070,0.46143406,109610.0,109600.0,0.25465011]
[1758962106304,0.46396406,109610.0,109600.0,0.54117011]
[1758962106631,0.46143406,109610.0,109600.0,0.54117011]
[1758962106831,0.46143406,109610.0,109600.0,0.54333011]
[1758962107081,0.46143406,109610.0,109600.0,0.54656011]
[1758962107297,0.80143406,109610.0,109600.0,0.54333011]
[1758962107714,0.80143406,109610.0,109600.0,0.54117011]
[1758962110023,0.80396406,109610.0,109600.0,0.54113011]
[1758962110404,0.80143406,109610.0,109600.0,0.54113011]
[1758962110630,0.80143406,109610.0,109600.0,0.54315011]
[1758962112372,0.80143406,109610.0,109600.0,0.54113011]
[1758962113360,0.80143406,109610.0,109600.0,0.54315011]
[1758962116830,0.80396406,109610.0,109600.0,0.35864836]
[1758962117196,0.80396406,109610.0,109600.0,0.54113011]
[1758962117400,0.79754855,109610.0,109600.0,0.35864836]
[1758962117644,0.80396643,109610.0,109600.0,0.54113011]
[1758962117836,0.80143643,109610.0,109600.0,0.54113011]
[1758962118276,0.80143643,109610.0,109600.0,0.54315011]
[1758962122860,0.80143668,109610.0,109600.0,0.54315011]
[1758962123630,0.80143668,109610.0,109600.0,0.36066836]
[1758962125426,0.80143668,109610.0,109600.0,0.54315011]
[1758962127203,0.80143668,109610.0,109600.0,0.36066836]
[1758962127351,0.80143668,109610.0,109600.0,0.36381836]
[1758962127984,0.80143668,109610.0,109600.0,0.54630011]
[1758962128383,0.80143668,109610.0,109600.0,0.36381836]
[1758962128563,0.34641813,109610.0,109600.0,0.54630011]
[1758962128775,0.65224795,109610.0,109600.0,0.54630011]
[1758962132717,0.57575836,109610.0,109600.0,0.54630011]
[1758962134130,0.00641813,109610.0,109600.0,0.54630011]
[1758962134335,0.23575836,109610.0,109600.0,0.54630011]
[1758962135193,0.22934023,109610.0,109600.0,0.54630011]
[1758962136517,0.05596522,109610.0,109600.0,0.54630011]
[1758962142100,0.64074253,109620.0,109610.0,0.212617]
[1758962142322,1.08239393,109620.0,109610.0,0.217737]
[1758962142672,1.08239393,109620.0,109610.0,0.241177]
[1758962143580,1.08239393,109620.0,109610.0,0.242177]
[1758962144138,1.08239393,109620.0,109610.0,0.336257]
[1758962144337,1.08239393,109620.0,109610.0,0.345257]
[1758962144488,1.08239393,109620.0,109610.0,0.340257]
[1758962144898,1.08239393,109620.0,109610.0,0.361257]
[1758962151265,1.08439393,109620.0,109610.0,0.361257]
[1758962156394,0.89961479,109620.0,109610.0,0.361257]
[1758962157163,0.89961479,109620.0,109610.0,0.37836619]
[1758962162891,0.89961479,109620.0,109610.0,0.37521619]
[1758962163303,0.89961479,109620.0,109610.0,0.358107]
[1758962163850,0.89962581,109620.0,109610.0,0.356137]
[1758962165256,0.89962581,109620.0,109610.0,0.358107]
[1758962168172,0.71974719,109620.0,109610.0,0.358107]
[1758962168374,0.46710242,109620.0,109610.0,0.37524394]
[1758962168592,0.00842196,109620.0,109610.0,0.37524394]
[1758962168826,0.46710242,109620.0,109610.0,0.37524394]
[1758962169432,0.48359552,109620.0,109610.0,0.37524394]
[1758962170266,0.48359552,109620.0,109610.0,0.361077]
[1758962175040,3.28522289,109620.0,109610.0,0.04844]
[1758962175249,2.5972022,109620.0,109610.0,0.04844]
[1758962175454,2.62465252,109620.0,109610.0,0.04844]
[1758962176081,2.62465252,109620.0,109610.0,0.04444]
[1758962176383,2.62465252,109620.0,109610.0,0.02344]
[1758962176575,2.62465252,109620.0,109610.0,0.02644]
[1758962176814,2.62465252,109620.0,109610.0,0.04144]
[1758962177043,2.62465252,109620.0,109610.0,0.02344]
[1758962177365,2.62465252,109620.0,109610.0,0.03344]
[1758962180022,2.63896432,109620.0,109610.0,0.03344]
[1758962181888,2.04582032,109620.0,109610.0,0.03344]
[1758962182096,1.97567532,109620.0,109610.0,0.03344]
[1758962182498,1.93220132,109620.0,109610.0,0.2159051]